Cogmind - Beta 16 *** ADVENTURER MODE // 2026.01.14 @ 22:11:05 Player: kullre Result: Destroyed by D-53 Grenadier with Mini Grenade Launcher Performance ------------- Evolutions (1) 500 Regions Visited (3) 600 Robots Destroyed (73) 365 Value Destroyed (1860) 1860 Prototype IDs (4) 80 Alien Tech Used (0) 0 Bonus (57) 57 TOTAL SCORE: 3462 Bonus ------- High Alert Combat Kills 57 Cogmind --------- Core Integrity 0/400 Matter 445/500 Energy 250/250 System Corruption 0% Temperature Cool (0) Movement Rolling (150) Ox4 Location -9/Mines Parts ------- > --- POWER (1) -------- Ion Engine > --- PROPULSION (2) --- Armored Wheel > --- UTILITY (4) ------ High-capacity Storage Unit High-capacity Matter Pod Improved Targeting Computer Weapon Shielding > --- WEAPON (2) ------- (None) > --- INVENTORY (20) --- Aluminum Leg Aluminum Leg High-capacity Matter Pod (200) Weapon Shielding Weapon Shielding Light Assault Rifle Autogun Datajack Peak State ------------ > --- POWER ------------ Light Ion Engine > --- PROPULSION ------- Improved Treads Improved Treads > --- UTILITY ---------- High-capacity Storage Unit High-capacity Matter Pod High-capacity Matter Pod > --- WEAPON ----------- Autogun Mini Grenade Launcher > --- INVENTORY -------- Aluminum Leg Beam Cannon Light Assault Rifle Autogun Datajack [Rating: 12] Favorites ----------- Power Light Ion Engine Engine Light Ion Engine Propulsion Light Treads Treads Light Treads Leg Aluminum Leg Wheel Wheel Utility High-capacity Matter Pod Storage High-capacity Matter Pod Processor Improved Targeting Computer Protection Weapon Shielding Weapon Autogun Energy Gun Heavy EM Pulse Gun Energy Cannon Beam Cannon Ballistic Gun Autogun Launcher Grenade Launcher Special Melee Weapon Datajack Build | -11 -10 -9 -9 ------- Run | Yrd Mat Mat Min Slots Evolved 2 | . . 2 . Power . | . . . . Propulsion . | . . . . Utility 2 | . . 2 . Weapon . | . . . . Parts Attached 39 | 7 9 22 1 Power 4 | 1 2 . 1 Engine 4 | 1 2 . 1 Core . | . . . . Reactor . | . . . . Propulsion 12 | 2 1 9 . Treads 5 | 2 . 3 . Leg 2 | . 1 1 . Wheel 5 | . . 5 . Hover . | . . . . Flight . | . . . . Utility 10 | 1 3 6 . Device . | . . . . Storage 5 | 1 2 2 . Processor 2 | . . 2 . Hackware . | . . . . Protection 3 | . 1 2 . Artifact . | . . . . Weapon 13 | 3 3 7 . Energy Gun 4 | 1 1 2 . Energy Cannon 1 | . . 1 . Ballistic Gun 4 | 2 2 . . Ballistic Cannon . | . . . . Launcher 3 | . . 3 . Special Weapon . | . . . . Impact Weapon . | . . . . Slashing Weapon . | . . . . Piercing Weapon . | . . . . Special Melee Weapon 1 | . . 1 . Unidentified Prototypes . | . . . . Parts Lost 11 | . 1 7 3 Power 2 | . 1 1 . Propulsion 3 | . . 2 1 Utility 1 | . . 1 . Weapon 5 | . . 3 2 Highest Loss Streak 3 | . 1 3 3 To Critical Strikes . | . . . . Average Backups 5 | 4 4 6 8 Power . | 1 . . . Propulsion 1 | 3 . 1 2 Utility 1 | . . 1 3 Weapon 1 | . 1 2 2 Tool/Special . | . . . . Unused Backups 9 | . 5 2 2 Power . | . . . . Propulsion 5 | . 4 1 . Utility 3 | . 1 . 2 Weapon 1 | . . 1 . Tool/Special . | . . . . Average Slot Usage (%) 81 | . 83 76 100 Engine 6 | . 12 1 11 Treads 7 | . 11 5 . Leg 3 | . 6 2 . Wheel 4 | . . 4 22 Storage 22 | . 21 23 22 Processor 7 | . . 12 11 Protection 4 | . 3 4 11 Energy Gun 3 | . 4 . 11 Ballistic Gun 13 | . 22 10 . Launcher 6 | . . 9 11 Peak Build Rating 12 | 6 8 12 12 Average Rating 8 | 5 7 9 11 On Entrance 6 | . 6 8 12 Avg Prop Armor Cover (%) 9 | . . 9 . Naked Turns . | . . . . Heaviest Build 56 | 12 33 55 56 Greatest Support 46 | 40 40 46 22 Greatest Overweight (x) 16 | 3 10 16 2 Average Overweight (x) 2 | . 1 3 2 Largest Inventory Capacity 20 | 8 15 20 20 Average Capacity 16 | 7 13 19 20 Most Carried 13 | 5 8 13 8 Average Carried 5 | 4 4 6 8 Final Capacity 20 | 8 15 20 20 Final Carried 9 | 5 4 9 8 Class Distribution -------------------- 100% | Mutant Dominant Class ---------------- Mutant | -10/Materials Mutant | -9/Materials Mutant | -9/Mines Resources | -11 -10 -9 -9 ----------- Run | Yrd Mat Mat Min Matter Collected 1911 | 224 570 1092 25 Remotely . | . . . . Salvage Created 1800 | . 442 1324 34 Parts 126 | . 18 98 10 Haulers Intercepted . | . . . . Recyclers Shooed 1 | . . 1 . Parts Field Recycled . | . . . . Retrieved Matter . | . . . . Parts Self-Destructed . | . . . . Prevented . | . . . . Parts Restored . | . . . . Kills | -11 -10 -9 -9 ------- Run | Yrd Mat Mat Min Combat Hostiles Destroyed 57 | . 11 39 7 Guns 29 | . 11 18 . Cannons 3 | . . 3 . AOE 25 | . . 18 7 Classes Destroyed 11 | . 3 7 1 Worker 4 | . . 4 . Builder 1 | . . 1 . Tunneler 1 | . . . 1 Recycler 1 | . . 1 . Mechanic 1 | . . 1 . Operator 2 | . . 2 . Watcher 6 | . 2 4 . Swarmer 20 | . 3 10 7 Grunt 28 | . 8 20 . Brawler 1 | . . 1 . Sentry 8 | . . 8 . Best Kill Streak 12 | . 3 12 4 Combat Bots Only 9 | . 3 9 4 Max Kills in Single Turn 5 | . 1 5 4 Gunslinging . | . . . . Exploded 4 | . . 4 4 Melee . | . . . . Uniques/NPCs Destroyed . | . . . . Combat | -11 -10 -9 -9 -------- Run | Yrd Mat Mat Min Hostile Shots Fired 297 | . 80 201 16 Missed 98 | . 19 74 5 Hits 199 | . 61 127 11 Projectile 199 | . 61 127 11 AOE 10 | . . . 10 Critical Strikes 5 | . 2 3 . Damage Taken 2141 | . 492 1301 348 Core 472 | . 70 283 119 Absorbed by Shields . | . . . . Redirected to Shielding 83 | . 1 52 30 Ignored by Resistances 642 | . 156 389 97 Regen/Repaired (Parts) 173 | . 144 29 . Core Remaining (%) 86 | 100 72 . . Volleys Fired 159 | . 48 102 9 Largest 2 | . 2 2 1 Hottest 90 | . 85 90 30 Shots Fired 251 | . 96 146 9 Gun 174 | . 96 78 . Cannon 22 | . . 22 . Launcher 55 | . . 46 9 Special . | . . . . Kinetic 163 | . 86 77 . Thermal 32 | . 10 22 . Explosive 55 | . . 46 9 Electromagnetic 1 | . . 1 . Robot Hit Streak 23 | . 10 23 6 Robot Miss Streak 2 | . 2 2 2 Penetration Max . | . . . . Secondary Targets 1 | . 1 . . Max Gunslinging Chain 1 | . 1 . . Shots Hit Robots 180 | . 71 102 7 Core Hits 120 | . 27 78 15 Critical Kills . | . . . . Critical Parts Destroyed . | . . . . Critical Strikes . | . . . . Melee Attacks . | . . . . Impact . | . . . . Slashing . | . . . . Piercing . | . . . . Sneak Attacks . | . . . . Combat Hostiles . | . . . . Follow-up Attacks . | . . . . Damage Inflicted 4868 | 4 824 3534 506 Guns 1724 | . 819 905 . Cannons 351 | . . 351 . Explosions 2742 | . . 2247 495 Melee . | . . . . Ramming 51 | 4 5 31 11 Kinetic 1564 | . 676 888 . Thermal 494 | . 143 351 . Explosive 2742 | . . 2247 495 Electromagnetic 17 | . . 17 . Impact . | . . . . Slashing . | . . . . Piercing . | . . . . Highest Corruption 1 | . 1 . . Average Corruption 1 | . 1 . . Corruption Purged . | . . . . Corruption Blocked . | . . . . Effects 13 | . 13 . . Message Errors 4 | . 4 . . Matter Fused 4 | . 4 . . Heat Flow Errors 3 | . 3 . . Data Loss (major) 1 | . 1 . . Misfires 1 | . 1 . . Overload Shots . | . . . . Overflow Damage 116 | . . 78 38 Projectiles . | . . . . Explosions 116 | . . 78 38 Melee . | . . . . Knockbacks . | . . . . Impact . | . . . . Kinetic . | . . . . Secondary . | . . . . Self-Inflicted Damage 188 | . . 133 55 Shots 11 | . . 7 4 Rammed 16 | 2 4 8 2 Targets Rammed 17 | 2 5 8 2 Kicked 1 | . 1 . . Crushed . | . . . . Highest Temperature 169 | . 169 65 . Average Temperature 32 | . 45 17 . Received Heat Transfer 690 | . 225 465 . Siege Activations . | . . . . Martial Activations . | . . . . Shielding Activations . | . . . . Robots Disrupted . | . . . . Combat Hostiles . | . . . . Robots Corrupted . | . . . . Combat Hostiles . | . . . . Parts Fried . | . . . . Impact Corruptions . | . . . . Robots Melted . | . . . . Combat Hostiles . | . . . . Parts Melted 1 | . . 1 . Heat Transferred 1073 | . 333 740 . Parts Sabotaged . | . . . . Parts Stolen . | . . . . Parts Stripped . | . . . . Power Chain Reactions . | . . . . Alert | -11 -10 -9 -9 ------- Run | Yrd Mat Mat Min Maximum Alert Level 2 | . . 2 . Low Security (%) 82 | 100 100 63 100 Level 1 11 | . . 24 . Level 2 5 | . . 12 . Level 3 . | . . . . Level 4 . | . . . . Level 5 . | . . . . High Security . | . . . . Max Security . | . . . . Peak Influence 534 | . 80 534 113 Initial 19 | . . . 19 Average 91 | . 9 177 40 Influence Increases 1959 | . 325 1415 219 Destroy 0b10 Robot/C 1140 | . 220 780 140 Destroy 0b10 Robot/NC 80 | . 10 65 5 Destroy Leader 282 | . 44 218 20 Successful Hack 65 | . 42 23 . Disable Machine 99 | . 9 63 27 Destroy Structure 293 | . . 266 27 Influence Decreases 1959 | . 325 1354 280 Entered New Map 42 | . . . 42 Time Decay 1820 | . 315 1284 221 Lost Part 97 | . 10 70 17 Squads Dispatched 9 | . 2 7 . Investigation 6 | . 2 4 . Extermination . | . . . . Reinforcement 3 | . . 3 . Assault . | . . . . Garrison . | . . . . Intercept . | . . . . Searches Triggered . | . . . . Construction Impeded 2 | . . 2 . Haulers Reinforced . | . . . . Active Scanning Responses . | . . . . Cargo Convoy Interrupts . | . . . . Stealth | -11 -10 -9 -9 --------- Run | Yrd Mat Mat Min Distress Signals 6 | . . 6 . Communications Jammed . | . . . . Distress Signals . | . . . . Times Spotted 74 | . 16 49 9 Peak Tracking Total 8 | . 3 8 4 Tactical Retreats . | . . . . Traps | -11 -10 -9 -9 ------- Run | Yrd Mat Mat Min Traps Triggered 11 | . 7 4 . Indirectly . | . . . . Trap Hack Attempts . | . . . . Triggered . | . . . . Disarmed . | . . . . Reprogrammed . | . . . . Reused . | . . . . Traps Extracted . | . . . . Installed . | . . . . Triggered . | . . . . Machines | -11 -10 -9 -9 ---------- Run | Yrd Mat Mat Min Machines Disabled 11 | . 1 7 3 Max in Single Turn 2 | . 1 1 2 Machines Repaired . | . . . . Machines Dismantled . | . . . . Machines Sabotaged . | . . . . Overloaded Fab Kills . | . . . . Hacking | -11 -10 -9 -9 --------- Run | Yrd Mat Mat Min Machines Accessed 21 | . 10 11 . Terminals 15 | . 8 7 . Fabricators . | . . . . Repair Stations 2 | . 1 1 . Recycling Units 2 | . 1 1 . Scanalyzers 2 | . . 2 . Garrison Access . | . . . . Total Hacks 68 | . 32 36 . Successful 45 | . 23 22 . Failed 23 | . 9 14 . Catastrophic 8 | . 3 5 . Database Lockouts . | . . . . Manual 11 | . . 11 . Terminals 36 | . 19 17 . Fabricators . | . . . . Repair Stations 11 | . 7 4 . Recycling Units 8 | . 6 2 . Scanalyzers 13 | . . 13 . Garrison Access . | . . . . Terminal Hacks 18 | . 12 6 . Record 2 | . 1 1 . Prototype ID Bank 2 | . 2 . . Branch Access Points 1 | . 1 . . Emergency Access Points 1 | . 1 . . Machine Index 1 | . 1 . . Alert Level 3 | . 1 2 . Dispatch Records 1 | . 1 . . Assault Status 1 | . . 1 . Recall Investigation 2 | . . 2 . Recall Reinforcements 1 | . 1 . . Hauler Manifests 1 | . 1 . . Registered Components 1 | . 1 . . Zone Layout 1 | . 1 . . Fabricator Hacks . | . . . . Repair Station Hacks 8 | . 6 2 . Scan Component 5 | . 4 1 . Repair 3 | . 2 1 . Recycling Unit Hacks 6 | . 5 1 . Recycle Component 5 | . 5 . . Retrieve Matter 1 | . . 1 . Scanalyzer 13 | . . 13 . Insert Component 5 | . . 5 . Analyze 6 | . . 6 . Retrieve Study 2 | . . 2 . Garrison Access Hacks . | . . . . Unauthorized Hacks . | . . . . Terminals . | . . . . Fabricators . | . . . . Repair Stations . | . . . . Recycling Units . | . . . . Scanalyzers . | . . . . Garrison Access . | . . . . Data Cores Recovered . | . . . . Used . | . . . . Hacking Detections 20 | . 9 11 . Full Trace Events 9 | . 4 5 . Feedback Events . | . . . . Feedback Blocked . | . . . . Robot Schematics Acquired . | . . . . Robots Built . | . . . . Authchips . | . . . . Time . | . . . . Total Robot Build Rating . | . . . . Part Schematics Acquired 4 | . . 4 . Parts Built . | . . . . Authchips . | . . . . Time . | . . . . Total Part Build Rating . | . . . . Part Studies Acquired 2 | . . 2 . Parts Repaired 3 | . 2 1 . Time 71 | . 58 13 . Parts Recycled 5 | . 5 . . Recycled Matter . | . . . . Retrieved Matter 193 | . . 193 . Retrieved Components . | . . . . Parts Scanalyzed 4 | . . 4 . Part Schematics Acquired 4 | . . 4 . Parts Damaged . | . . . . Bothacking | -11 -10 -9 -9 ------------ Run | Yrd Mat Mat Min Used RIF Installer . | . . . . Robots Hacked . | . . . . Non-combat . | . . . . Combat . | . . . . Robot Hacks Applied . | . . . . Relay Couplers Released . | . . . . Fabnet Peak Effective % . | . . . . Robots Rewired . | . . . . Allies Hacked . | . . . . Hacks Repelled . | . . . . Allies | -11 -10 -9 -9 -------- Run | Yrd Mat Mat Min Total Allies 2 | . . . 2 Largest Group 2 | . . . 2 Highest-Rated Group 49 | . . . 49 Highest-Rated Ally 31 | . . . 31 Total Orders . | . . . . Ally Attacks 3 | . . . 3 Total Damage 64 | . . . 64 Kills 1 | . . . 1 Allies Corrupted . | . . . . Allies Melted . | . . . . Intel | -11 -10 -9 -9 ------- Run | Yrd Mat Mat Min Active Infowar (turns) . | . . . . Robot Analysis Total . | . . . . Derelict Logs Recovered 2 | . . . 2 Drone Launches . | . . . . Drone Recoveries . | . . . . Exploration | -11 -10 -9 -9 ------------- Run | Yrd Mat Mat Min Turns Passed 6201 | 592 2113 2956 540 Spaces Moved 2737 | 366 819 1080 472 Core 195 | 45 64 86 . Treads 1135 | 321 484 330 . Legs 391 | . 271 120 . Wheels 1016 | . . 544 472 Hover . | . . . . Flight . | . . . . Fastest Speed 50 | 50 160 100 110 Average Speed 207 | 155 237 244 110 Slowest Speed 850 | 200 550 850 110 Overloaded Moves . | . . . . Propulsion Burnouts . | . . . . Robots Hopped . | . . . . Potential Cave-ins 2 | . . 2 . Cave-ins Triggered . | . . . . Exploration Rate (%) 69 | 18 87 88 84 Regions Visited 3 Branch Regions 1 Pre-discovered Areas 1 | . . . 1 Known Exits Taken . | . . . . Unknown Exits Taken 3 | 1 1 1 . Scrap Searched 1 | . . . 1 Spaces Dug . | . . . . Terrain Destroyed 349 | . . 311 38 Melee . | . . . . Projectile . | . . . . AOE 349 | . . 311 38 Terrain Rammed . | . . . . Walls Destroyed . | . . . . Machines Disabled . | . . . . Actions | -11 -10 -9 -9 --------- Run | Yrd Mat Mat Min Total 3033 | 387 901 1261 484 Wait . | . . . . Move 2734 | 365 818 1079 472 Hop . | . . . . Pick Up 56 | 12 16 28 . Fast Attach . | . . . . Attach 39 | 7 11 20 1 Detach 5 | . . 5 . Swap 14 | . 2 12 . Drop 9 | 1 1 7 . Fire 159 | . 48 102 9 Melee . | . . . . Ram 7 | . 1 4 2 Kick 1 | . 1 . . Crush 9 | 2 3 4 . Escape Stasis . | . . . . Rewire . | . . . . Trap . | . . . . Miscellaneous . | . . . . Route ------- -11/Scrapyard -10/Materials (discovered 4 exits: *Mat x2 / *Min / [*Sub]) -9/Materials (discovered 6 exits: [*Mat x2] / [*Min x2] / [*Sto x2]) -9/Mines (discovered 2 exits: [*Mat x2]) History --------- Turn | Location | Event 15 | -11/Scrapyard | Discovered new exit (range 13) 593 | -11/Scrapyard | Entered Materials 594 | -10/Materials | Build established: Mutant 594 | -10/Materials | Met a group of wandering Federalists 862 | -10/Materials | Identified exit to Mines 1322 | -10/Materials | Discovered new exit (range 15) 1337 | -10/Materials | Discovered new exit (range 3) 1767 | -10/Materials | Discovered new exit (range 11) 2193 | -10/Materials | Repaired Aluminum Leg 2234 | -10/Materials | Repaired Autogun 2706 | -10/Materials | Entered another Materials area 2706 | -9/Materials | Evolved 2 slots: Utility x2 2743 | -9/Materials | Repaired Lgt. Ion Engine 2937 | -9/Materials | Discovered new exit (range 11) 3181 | -9/Materials | Destroyed 9 combat bots 3249 | -9/Materials | Discovered new exit (range 11) 3256 | -9/Materials | Discovered new exit (range 14) 3438 | -9/Materials | Destroyed 7 combat bots 3452 | -9/Materials | Lost 3 parts (2n1w) 3575 | -9/Materials | Core integrity fell below 50% 3855 | -9/Materials | Discovered new exit (range 3) 4785 | -9/Materials | Discovered new exit (range 4) 5196 | -9/Materials | Discovered new exit (range 4) 5662 | -9/Materials | Entered Mines 5679 | -9/Mines | Learned location of Recycling (-9) 5790 | -9/Mines | Learned Materials terminal intel 5948 | -9/Mines | Discovered new exit (range 16) 5999 | -9/Mines | Discovered new exit (range 13) 6161 | -9/Mines | Assembled infested the area 6197 | -9/Mines | Core integrity fell below 20% 6202 | -9/Mines | Destroyed by D-53 Grenadier with Mini Grenade Launcher Last Messages --------------- K-01 Serf collects debris. Acquired 5 matter. EXIT=FOUND Slammed into U-05 Engineer. ALERT: Infestation in the mines, dispatching Demolisher response squad. A pair of derelicts emerge from the shadows: "We're, um, lost. You wouldn't happen to know the way out of here, would you?" C-45 Heavy ARC bursts open, deploying its payload. D-53 Grenadier unfolds itself. Pressure Siphon disabled. The unstable cave ceiling collapses. Hvy. EM Pulse Gun destroyed. Destroyed Hvy. EM Pulse Gun. Wheel+ destroyed. The unstable cave ceiling collapses. Grenade Launcher+ destroyed. [Achievement: First Step to Greatness] Map ----- +----------------------------------------------------+ | #???# #???????????# """ ""[[=" """ """ # | | ##### ############# """ ""= """ """ # | | # ###%[ * # | | ### %]################# ##### ############ | | ??# #####???????????????# #???##### ##??????????? | | ??# #???????????######### #???????# #???????????? | | ### #??##?????### ######### #???????????? | | #### ##??## #???????????? | | #?## #################???????????? | | ####### ## ##???????????????????????????? | | ##???# #????????????????????????????? | | ##??# #????????????????????????????? | | ##### #????????????????????????????? | | # ##### ##????????????????????????????? | | ## #???## ###?????????????????????????????? | | ?#### #????## ##???????????????????????????????? | | ????# #?????####????????????????????????????????? | | ????# #????????????????????????######???????????? | | ??### #???????????????????????# ??????????? | | ??# #??????????#?????#####?# ??????????? | | ??# #????????### ##### ## ??????????? | | ??# ###????????# # #?????????? | | ??# #??????##### #???????????? | | ??# #?????## ## d #????????????? | | ??# ####?## d #????????????? | | ### ### t @ #?????????????? | | z % "" ##???????????????? | | ### "" ###????????????????? | | ##?## g""" ?????????????????? | | #???# ####?#??????????????? | | ##??## ##??? ###????????????? | | ###??## # #??? #????????????? | | ######????# ## ## #?? """ ##???????????? | | ##?????????# ### ####?# ### """ ??????????? | | ##??????????## ##?# #????# """ #????????????? | | ?????????????####??# ????### # """ #????????????? | | ???????????????????###??????# #?? #????????????? | | ????????????????????????????# ##???##????????????? | | ???????????????????????????## ##????????????????? | | ???????????????????????????# #????????????????? | | #??????????????????????????# #???????????????? | | ###???????????????????????# #??????????????? | | ##????????????????????? ?????????????? | | #???????????????????? ####????????????? | | #???????????????????# ####???????????????? | | #??????????????????# ###??????????????????? | | #????????????????? #?????????????????????? | | ######??????????? #??????????????????????? | | ## ##????????? #???????????????????????? | | #????????#######????????????????????????? | +----------------------------------------------------+ Best States ------------- Heat Dissipation 28 Energy Generation 10 Energy Capacity 250 Matter Stores 614 Matter Capacity 700 Sight Range 16 Terrain Scan Density 10 Resistance: KI 20 Resistance: TH 20 Resistance: EX 20 Resistance: EM 20 Resistance: I 20 Resistance: S 20 Resistance: P 20 Core Shielding 20 Weapon Shielding 33 Evasion (%) 50 Targeting Accuracy 12 Recoil Reduction 2 Offensive Hacking 10 Item Schematics ----------------- Mni. Grenade Launcher | -9/Materials | Scanalyzed Grenade Launcher | -9/Materials | Scanalyzed Wheel | -9/Materials | Scanalyzed Aluminum Leg | -9/Materials | Scanalyzed Robot Schematics ------------------ None Fabricated ------------ Nothing Repaired ---------- Aluminum Leg | 24% | -10/Materials Autogun | 33% | -10/Materials Lgt. Ion Engine | 27% | -9/Materials Studied --------- Grenade Launcher | -9/Materials | Hacked Wheel | -9/Materials | Hacked Alien Tech Used ----------------- None Achievements -------------- First Step to Greatness Challenges ------------ None Game ------ Seed PartitionMetamassProjector Manual? 0 Play Time 00:43:02 Cumulative 2.4 hours Start 2026.01.14 @ 21:26:27 End 2026.01.14 @ 22:11:05 Sessions 1 Manual Loads 0 Difficulty Adventurer Special Mode None Game No. 6 Rogue 0 Adventurer 6 Explorer 0 Win Type - Total 0 Types 0/0/0/0/0/0/0/0/0/0 Lore% 1 Gallery% 5 Achievement% 6 Wizard Run 0 Options --------- Layout 1 ASCII 0 Keyboard 0 Movement Arrows Keybinds 0 Fullscreen 1 Font 24/Smallcaps Map View 50x35 Zoom Use 0% Tactical HUD 0 Map Filters NONE Filters NONE Steam 1 RUN: 6b372fb6-02f4-475c-b7f2-ea36c0a5b67d